fUSD/lending_fUSD_20240213
["ID","MTS","AMOUNT","RATE_DAILY","PERIOD"]
[313914503,1707819043799,-4222.95,0.00028767,2]
[313914504,1707819043808,-417.44372197,0.00028767,2]
[313914505,1707819043817,-500.0,0.00028767,2]
[313914506,1707819043826,-500.0,0.00028767,2]
[313914507,1707819043835,-500.0,0.00028767,2]
[313914508,1707819043845,-500.0,0.00028767,2]
[313914509,1707819043854,-500.0,0.00028767,2]
[313914510,1707819043864,-583.59,0.00028767,2]
[313914511,1707819043873,-500.0,0.00028767,2]
[313914512,1707819043882,-500.0,0.00028767,2]
[313914513,1707819043891,-500.0,0.00028767,2]
[313914514,1707819043901,-500.0,0.00028767,2]
[313914515,1707819043910,-500.0,0.00028767,2]
[313914516,1707819043919,-500.0,0.00028767,2]
[313914517,1707819043930,-576.0,0.00028767,2]
[313914518,1707819043939,-500.0,0.00028767,2]
[313914519,1707819043949,-500.0,0.00028767,2]
[313914520,1707819043959,-500.0,0.00028767,2]
[313914521,1707819043970,-150.0,0.00028768,2]
[313914522,1707819043980,-150.0,0.0002877,2]
[313914523,1707819043989,-150.0,0.00028771,2]
[313914524,1707819043999,-150.0,0.00028775,2]
[313914525,1707819044009,-150.0,0.00028777,2]
[313914526,1707819044019,-150.0,0.0002878,2]
[313914527,1707819044028,-300.0,0.00028784,2]
[313914528,1707819044038,-150.0,0.00028787,2]
[313914529,1707819044048,-150.0,0.00028787,2]
[313914530,1707819044057,-150.0,0.00028788,2]
[313914531,1707819044066,-8021.20473619,0.00028789,2]
[313914532,1707819044075,-689.8909644,0.00028789,2]
[313914533,1707819044084,-1077.19191958,0.00028789,2]
[313914534,1707819044094,-265.36236404,0.00028789,15]
[313914535,1707819044103,-175.10873064,0.00028789,2]
[313914536,1707819044113,-150.0,0.00028791,2]
[313914537,1707819044122,-150.0,0.00028793,2]
[313914538,1707819044131,-150.0,0.00028799,2]
[313914539,1707819044141,-2520.57713857,0.000288,4]
[313914540,1707819044150,-1900.0,0.000288,10]
[313914541,1707819044160,-348.0,0.000288,2]
[313914542,1707819044169,-150.0,0.00028803,2]
[313914543,1707819044179,-150.0,0.00028803,2]
[313914544,1707819044188,-150.0,0.00028805,2]
[313914545,1707819044198,-150.0,0.00028806,2]
[313914546,1707819044207,-150.0,0.00028814,2]
[313914547,1707819044217,-150.0,0.00028814,2]
[313914548,1707819044226,-150.0,0.00028817,2]
[313914549,1707819044235,-150.0,0.00028817,2]
[313914550,1707819044245,-150.0,0.00028822,2]
[313914551,1707819044254,-150.0,0.00028822,2]
[313914552,1707819044263,-150.0,0.00028822,2]
[313914553,1707819044273,-150.0,0.00028834,2]
[313914554,1707819044282,-150.0,0.00028837,2]
[313914555,1707819044292,-150.0,0.00028838,2]
[313914556,1707819044301,-150.0,0.00028839,2]
[313914557,1707819044310,-150.0,0.0002884,2]
[313914558,1707819044319,-150.0,0.00028843,2]
[313914559,1707819044329,-1182.57,0.00028847,2]
[313914560,1707819044338,-357.3566154,0.00028869,2]
[313914561,1707819044489,-37725.1429289,0.00028869,2]
[313914562,1707819044521,-4085.7201502,0.00028869,2]
[313914563,1707819044530,-8870.4807839,0.00028869,2]
[313914564,1707819044539,-1149.7395603,0.00028869,2]
[313914565,1707819044549,-50000.0,0.00028872,7]
[313914566,1707819044558,-150.0,0.0002888,2]
[313914567,1707819044567,-164.76405169,0.00028886,2]
[313914568,1707819044576,-335.84200871,0.00028888,4]
[313914569,1707819044586,-999952.91694236,0.00028888,3]
[313914570,1707819044595,-213036.26870237,0.00028889,5]
[313914571,1707819044633,-239.54812871,0.00028188,6]
[313914572,1707819044642,-765.87849289,0.00028889,5]
[313914573,1707819044654,-1123.70093959,0.00028889,5]
[313914574,1707819044691,-850.42654744,0.00028847,6]
[313914575,1707819044700,-914647.49866515,0.00028889,5]
[313914576,1707819044709,-500.0,0.00028889,2]
[313914577,1707819044719,-500.0,0.00028889,2]
[313914578,1707819044728,-500.0,0.00028889,2]
[313914579,1707819044738,-500.0,0.00028889,2]
[313914580,1707819044747,-500.0,0.00028889,2]
[313914581,1707819044757,-500.0,0.00028889,2]
[313914582,1707819044766,-500.0,0.00028889,2]
[313914583,1707819044775,-500.0,0.00028889,2]
[313914584,1707819044784,-500.0,0.00028889,2]
[313914585,1707819044793,-500.0,0.00028889,2]
[313914586,1707819044803,-500.0,0.00028889,2]
[313914587,1707819044813,-500.0,0.00028889,2]
[313914588,1707819044822,-500.0,0.00028889,2]
[313914589,1707819044831,-500.0,0.00028889,2]
[313914590,1707819044841,-500.0,0.00028889,2]
[313914591,1707819044851,-500.0,0.00028889,2]
[313914592,1707819044859,-500.0,0.00028889,2]
[313914593,1707819044869,-500.0,0.00028889,2]
[313914594,1707819044878,-500.0,0.00028889,2]
[313914595,1707819044887,-500.0,0.00028889,2]
[313914596,1707819044897,-500.0,0.00028889,2]
[313914597,1707819044906,-500.0,0.00028889,2]
[313914598,1707819044915,-357.6903983,0.00028889,2]
[313914599,1707819044925,-500.0,0.00028889,2]
[313914600,1707819044935,-500.0,0.00028889,2]
[313914601,1707819044945,-500.0,0.00028889,2]
[313914602,1707819044955,-500.0,0.00028889,2]
[313914603,1707819044965,-500.0,0.00028889,2]
[313914604,1707819044974,-500.0,0.00028889,2]
[313914605,1707819044984,-500.0,0.00028889,2]
[313914606,1707819044994,-500.0,0.00028889,2]
[313914607,1707819045003,-500.0,0.00028889,2]
[313914608,1707819045012,-500.0,0.00028889,2]
[313914609,1707819045022,-500.0,0.00028889,2]
[313914610,1707819045031,-500.0,0.00028889,2]
[313914611,1707819045042,-500.0,0.00028889,2]
[313914612,1707819045052,-500.0,0.00028889,2]
[313914613,1707819045061,-500.0,0.00028889,2]
[313914614,1707819045071,-500.0,0.00028889,2]
[313914615,1707819045080,-500.0,0.00028889,2]
[313914616,1707819045090,-500.0,0.00028889,2]
[313914617,1707819045099,-500.0,0.00028889,2]
[313914618,1707819045109,-500.0,0.00028889,2]
[313914619,1707819045118,-500.0,0.00028889,2]
[313914620,1707819045128,-500.0,0.00028889,2]
[313914621,1707819045138,-500.0,0.00028889,2]
[313914622,1707819045147,-500.0,0.00028889,2]
[313914623,1707819045157,-500.0,0.00028889,2]
[313914624,1707819045167,-373.91315767,0.00028889,2]
[313914625,1707819045440,-126.08684233,0.00028889,2]
[313914626,1707819045451,-500.0,0.00028889,2]
[313914627,1707819045461,-154.46279281,0.00028889,2]
[313914628,1707819045560,-529.36944675,0.00028767,2]
[313914629,1707819045569,-703.24413932,0.00028789,2]
[313914630,1707819045579,-345.53720719,0.00028889,2]
[313914631,1707819045589,-81.01175622,0.00028889,2]
[313914633,1707819045963,-500.0,0.00028767,2]
[313914634,1707819045972,-418.98824378,0.00028889,2]
[313914635,1707819045982,-500.0,0.00028889,2]
[313914636,1707819045991,-230.13108806,0.00028889,2]
[313914637,1707819046001,-364.43801139,0.00028889,2]
[313914638,1707819046013,-135.56198861,0.00028889,2]
[313914639,1707819046022,-500.0,0.00028889,2]
[313914640,1707819046032,-650.0,0.00028889,2]
[313914641,1707819046044,-500.0,0.00028889,2]
[313914642,1707819046053,-500.0,0.00028889,2]
[313914643,1707819046063,-347.43791139,0.00028889,2]
[313914644,1707819046199,-152.56208861,0.00028889,2]
[313914645,1707819046208,-141.12665848,0.00028889,2]
[313914646,1707819046219,-358.87334152,0.00028889,2]
[313914647,1707819046228,-8021.20473609,0.0002889,2]
[313914648,1707819046238,-500.0,0.0002889,2]
[313914649,1707819046247,-10087.36059096,0.00028899,2]
[313914650,1707819046256,-300.0,0.000289,10]
[313914651,1707819046265,-150.0,0.000289,2]
[313914652,1707819046274,-43476.0,0.00028904,4]
[313914653,1707819046283,-8021.20473609,0.00028991,2]
[313914654,1707819046293,-50000.0,0.00028998,7]
[313914655,1707819046302,-10000.0,0.00029,2]
[313914656,1707819046311,-450.0,0.00029,3]
[313914657,1707819046320,-1000.0,0.00029,2]
[313914658,1707819046329,-1062.26,0.00029009,2]
[313914659,1707819046338,-4159.32,0.00029029,3]
[313914660,1707819046347,-213.16702277,0.00029041,2]
[313914661,1707819046357,-515.22844735,0.00029041,2]
[313914662,1707819046365,-500.0,0.00029041,2]
[313914663,1707819046375,-352.88724698,0.00029041,2]
[313914664,1707819046384,-500.0,0.00029041,2]
[313914665,1707819046393,-500.0,0.00029041,2]
[313914666,1707819046402,-525.55266546,0.00029041,2]
[313914667,1707819046411,-373.29422254,0.00029041,2]
[313914668,1707819046419,-500.0,0.00029041,2]
[313914669,1707819046428,-500.0,0.00029041,2]
[313914670,1707819046438,-500.0,0.00029041,2]
[313914671,1707819046447,-500.0,0.00029041,2]
[313914672,1707819046456,-500.0,0.00029041,2]
[313914673,1707819046465,-505.4833481,0.00029041,2]
[313914674,1707819046475,-500.0,0.00029041,2]
[313914675,1707819046484,-500.0,0.00029041,2]
[313914676,1707819046493,-537.29,0.00029041,2]
[313914677,1707819046501,-530.5387175,0.00029041,2]
[313914678,1707819046510,-1234.66,0.00029041,2]
[313914679,1707819046519,-528.74716271,0.00029041,2]
[313914680,1707819046529,-500.0,0.00029041,2]
[313914681,1707819046538,-500.0,0.00029041,2]
[313914682,1707819046547,-439.52034672,0.00029041,2]
[313914683,1707819046555,-626.64248829,0.00029041,2]
[313914684,1707819046565,-500.0,0.00029041,2]
[313914685,1707819046574,-427.82369815,0.00029041,2]
[313914686,1707819046747,-3314.82130757,0.00028766,2]
[313914687,1707819046756,-99.87343882,0.00029041,2]
[313914688,1707819046765,-252.75183983,0.00029041,2]
[313914689,1707819046774,-500.0,0.00029041,2]
[313914690,1707819046784,-430.75682701,0.00029041,2]
[313914691,1707819046800,-87.76554613,0.00029041,2]
[313914692,1707819046809,-289.65250375,0.00029041,2]
[313914693,1707819046821,-210.34749625,0.00029041,2]
[313914694,1707819046830,-575.99798967,0.00029041,2]
[313914695,1707819046839,-500.0,0.00029041,2]
[313914696,1707819046848,-510.17679301,0.00029041,2]
[313914697,1707819046857,-721.59303007,0.00029041,2]
[313914698,1707819046869,-75.94696993,0.00029041,2]
[313914699,1707819046878,-181.38991837,0.00029041,2]
[313914700,1707819046893,-318.61008163,0.00029041,2]
[313914701,1707819046902,-232.55977275,0.00029041,2]
[313914702,1707819046911,-500.0,0.00029041,2]
[313914703,1707819046920,-93.60393082,0.00029041,2]
[313914704,1707819047001,-406.39606918,0.00029041,2]
[313914705,1707819047011,-456.35022442,0.00029041,2]
[313914706,1707819047022,-43.64977558,0.00029041,2]
[313914707,1707819047032,-500.0,0.00029041,2]
[313914708,1707819047043,-432.78710922,0.00029041,2]
[313914709,1707819047055,-67.21289078,0.00029041,2]
[313914710,1707819047064,-500.0,0.00029041,2]
[313914711,1707819047073,-87.86649682,0.00029041,2]
[313914712,1707819047089,-412.13350318,0.00029041,2]
[313914713,1707819047098,-452.26399234,0.00029041,2]
[313914714,1707819047109,-160.13600766,0.00029041,2]
[313914715,1707819047117,-500.0,0.00029041,2]
[313914716,1707819047126,-500.0,0.00029041,2]
[313914717,1707819047135,-500.0,0.00029041,2]
[313914718,1707819047146,-547.67709298,0.00029041,2]
[313914719,1707819047154,-500.0,0.00029041,2]
[313914720,1707819047164,-500.0,0.00029041,2]
[313914721,1707819047173,-500.0,0.00029041,2]
[313914722,1707819047182,-500.0,0.00029041,2]
[313914723,1707819047191,-528.29826261,0.00029041,2]
[313914724,1707819047200,-440.9393058,0.00029041,2]
[313914725,1707819047212,-59.0606942,0.00029041,2]
[313914726,1707819047221,-224.80836178,0.00029041,2]
[313914727,1707819047277,-275.19163822,0.00029041,2]
[313914728,1707819047286,-500.0,0.00029041,2]
[313914729,1707819047295,-500.0,0.00029041,2]
[313914730,1707819047304,-500.0,0.00029041,2]
[313914731,1707819047314,-500.0,0.00029041,2]
[313914732,1707819047324,-312.47130637,0.00029041,2]
[313914733,1707819047336,-187.52869363,0.00029041,2]
[313914734,1707819047346,-183.08557537,0.00029041,2]
[313914735,1707819047355,-500.0,0.00029041,2]
[313914736,1707819047364,-500.0,0.00029041,7]
[313914737,1707819047374,-500.0,0.00029041,2]
[313914738,1707819047384,-530.66794805,0.00029041,2]
[313914739,1707819047393,-500.0,0.00029041,2]
[313914740,1707819047403,-500.0,0.00029041,2]
[313914741,1707819047412,-500.0,0.00029041,2]
[313914742,1707819047421,-500.0,0.00029041,2]
[313914743,1707819047430,-500.0,0.00029041,2]
[313914744,1707819047440,-500.0,0.00029041,2]
[313914745,1707819047449,-500.0,0.00029041,2]
[313914746,1707819047458,-122.1778705,0.00029041,2]
[313914747,1707819047469,-70.62811801,0.00029041,2]
[313914748,1707819047478,-231.70162319,0.00029041,2]
[313914749,1707819047490,-268.29837681,0.00029041,2]
[313914750,1707819047499,-136.70275841,0.00029041,2]
[313914751,1707819047510,-73.68724159,0.00029041,2]
[313914752,1707819047518,-192.75091944,0.00029041,2]
[313914753,1707819047530,-307.24908056,0.00029041,2]
[313914754,1707819047539,-500.0,0.00029041,2]
[313914755,1707819047547,-500.0,0.00029041,2]
[313914756,1707819047557,-500.0,0.00029041,2]
[313914757,1707819047566,-500.0,0.00029041,2]
[313914758,1707819047574,-500.0,0.00029041,2]
[313914759,1707819047584,-500.0,0.00029041,2]
[313914760,1707819047593,-283.64958803,0.00029041,2]
[313914761,1707819047602,-500.0,0.00029041,2]
[313914762,1707819047611,-500.0,0.00029041,2]
[313914763,1707819047620,-288.47037137,0.00029041,2]
[313914764,1707819047629,-500.0,0.00029041,2]
[313914765,1707819047638,-636.08009619,0.00029041,2]
[313914766,1707819047647,-500.0,0.00029041,2]
[313914767,1707819047657,-500.0,0.00029041,2]
[313914768,1707819047666,-500.0,0.00029041,2]
[313914769,1707819047675,-485.24234443,0.00029041,2]
[313914770,1707819047684,-517.71802627,0.00029041,2]
[313914771,1707819047693,-500.0,0.00029041,2]
[313914772,1707819047702,-500.0,0.00029041,2]
[313914773,1707819047711,-549.16249912,0.00029041,2]
[313914774,1707819047720,-78.33319369,0.00029041,2]
[313914775,1707819047733,-421.66680631,0.00029041,2]
[313914776,1707819047742,-185.59910962,0.00029041,2]
[313914777,1707819047752,-412.35412163,0.00029041,2]
[313914778,1707819047768,-134.06752593,0.00029041,2]
[313914779,1707819047777,-401.31690225,0.00029041,2]
[313914780,1707819047787,-603.978381,0.00029041,2]
[313914781,1707819047800,-214.191619,0.00029041,2]
[313914782,1707819047811,-500.0,0.00029041,2]
[313914783,1707819047820,-500.0,0.00029041,2]
[313914784,1707819047829,-500.0,0.00029041,2]
[313914785,1707819047840,-150.0,0.00029041,2]
[313914786,1707819047849,-215.46786612,0.00029041,2]
[313914787,1707819047868,-284.53213388,0.00029041,2]
[313914788,1707819047877,-285.32606199,0.00029041,2]
[313914789,1707819047890,-214.67393801,0.00029041,2]
[313914790,1707819047899,-500.0,0.00029041,2]
[313914791,1707819047908,-500.0,0.00029041,2]
[313914792,1707819047917,-500.0,0.00029041,2]
[313914793,1707819047926,-500.0,0.00029041,2]
[313914794,1707819047937,-500.0,0.00029041,2]
[313914795,1707819047948,-500.0,0.00029041,2]
[313914796,1707819047957,-500.0,0.00029041,2]
[313914797,1707819047968,-500.0,0.00029041,2]
[313914798,1707819047977,-512.84418491,0.00029041,2]
[313914799,1707819047989,-22.0025492,0.00029041,2]
[313914800,1707819047998,-500.0,0.00029041,2]
[313914801,1707819048007,-230.59330525,0.00029041,2]
[313914802,1707819048181,-250.0,0.00027826,2]
[313914803,1707819048191,-285.50337513,0.00028766,2]
[313914804,1707819048201,-269.40669475,0.00029041,2]
[313914805,1707819048210,-500.0,0.00029041,2]
[313914806,1707819048221,-500.0,0.00029041,2]
[313914807,1707819048230,-500.0,0.00029041,2]
[313914808,1707819048240,-631.09438078,0.00029041,2]
[313914809,1707819048249,-500.0,0.00029041,2]
[313914810,1707819048259,-500.0,0.00029041,2]
[313914811,1707819048269,-500.0,0.00029041,2]
[313914812,1707819048278,-206.56815069,0.00029041,2]
[313914813,1707819048287,-534.46859835,0.00029041,2]
[313914814,1707819048297,-496.51841191,0.00029041,2]
[313914815,1707819048306,-500.0,0.00029041,2]
[313914816,1707819048316,-567.37873385,0.00029041,2]
[313914817,1707819048326,-500.0,0.00029041,2]
[313914818,1707819048335,-500.0,0.00029041,2]
[313914819,1707819048344,-500.0,0.00029041,2]
[313914820,1707819048353,-500.0,0.00029041,2]
[313914821,1707819048362,-500.0,0.00029041,2]
[313914822,1707819048371,-411.60850664,0.00029041,2]
[313914823,1707819048380,-540.72994771,0.00029041,2]
[313914824,1707819048389,-500.0,0.00029041,2]
[313914825,1707819048398,-500.0,0.00029041,2]
[313914826,1707819048407,-500.0,0.00029041,2]
[313914827,1707819048416,-500.0,0.00029041,2]
[313914828,1707819048425,-500.0,0.00029041,2]
[313914829,1707819048435,-500.0,0.00029041,2]
[313914830,1707819048444,-500.0,0.00029041,2]
[313914831,1707819048454,-500.0,0.00029041,2]
[313914832,1707819048464,-527.61643787,0.00029041,2]
[313914833,1707819048474,-500.0,0.00029041,2]
[313914834,1707819048484,-500.0,0.00029041,2]
[313914835,1707819048494,-500.0,0.00029041,2]
[313914836,1707819048505,-500.0,0.00029041,2]
[313914837,1707819048515,-379.41761559,0.00029041,2]
[313914838,1707819048524,-529.0353646,0.00029041,2]
[313914839,1707819048534,-539.33226527,0.00029041,2]
[313914840,1707819048544,-500.0,0.00029041,2]
[313914841,1707819048554,-500.0,0.00029041,2]
[313914842,1707819048564,-500.0,0.00029041,2]
[313914843,1707819048574,-530.45748926,0.00029041,2]
[313914844,1707819048583,-500.0,0.00029041,2]
[313914845,1707819048593,-500.0,0.00029041,2]
[313914846,1707819048602,-540.53930927,0.00029041,2]
[313914847,1707819048612,-543.72979583,0.00029041,2]
[313914848,1707819048621,-500.0,0.00029041,2]
[313914849,1707819048631,-500.0,0.00029041,2]
[313914850,1707819048640,-500.0,0.00029041,2]
[313914851,1707819048649,-500.0,0.00029041,2]
[313914852,1707819048658,-1395.42,0.00029041,2]
[313914853,1707819048667,-500.0,0.00029041,2]
[313914854,1707819048676,-500.0,0.00029041,2]
[313914855,1707819048687,-500.0,0.00029041,2]
[313914856,1707819048697,-500.0,0.00029041,2]
[313914857,1707819048706,-500.0,0.00029041,2]
[313914858,1707819048715,-500.0,0.00029041,2]
[313914859,1707819048724,-500.0,0.00029041,2]
[313914860,1707819048733,-1164.81,0.00029041,2]
[313914861,1707819048742,-500.0,0.00029041,2]
[313914862,1707819048751,-500.0,0.00029041,2]
[313914863,1707819048761,-500.0,0.00029041,2]
[313914864,1707819048770,-500.0,0.00029041,2]
[313914865,1707819048780,-500.0,0.00029041,2]
[313914866,1707819048789,-500.0,0.00029041,2]
[313914867,1707819048798,-500.0,0.00029041,2]
[313914868,1707819048807,-500.0,0.00029041,2]
[313914869,1707819048817,-500.0,0.00029041,2]
[313914870,1707819048826,-500.0,0.00029041,2]
[313914871,1707819048836,-500.0,0.00029041,2]
[313914872,1707819048846,-500.0,0.00029041,2]
[313914873,1707819048855,-573.66076769,0.00029041,2]
[313914874,1707819048865,-1675.22,0.00029041,2]
[313914875,1707819048875,-513.96,0.00029041,2]
[313914876,1707819048884,-500.0,0.00029041,2]
[313914877,1707819048897,-500.0,0.00029041,2]
[313914878,1707819048936,-500.0,0.00029041,2]
[313914879,1707819048947,-566.07249277,0.00029041,2]
[313914880,1707819048958,-811.29,0.00029041,2]
[313914881,1707819048969,-500.0,0.00029041,2]
[313914882,1707819048979,-500.0,0.00029041,2]
[313914883,1707819048989,-500.0,0.00029041,2]
[313914884,1707819049000,-500.0,0.00029041,2]
[313914885,1707819049009,-500.0,0.00029041,2]
[313914886,1707819049019,-541.27147141,0.00029041,2]
[313914887,1707819049030,-181.42826435,0.00029041,2]
[313914888,1707819049040,-500.0,0.00029041,2]
[313914889,1707819049050,-500.0,0.00029041,2]
[313914890,1707819049060,-500.0,0.00029041,2]
[313914891,1707819049069,-500.0,0.00029041,2]
[313914892,1707819049079,-948.74,0.00029041,2]
[313914893,1707819049088,-500.0,0.00029041,2]
[313914894,1707819049098,-775.15,0.00029041,2]
[313914895,1707819049109,-1774.77,0.00029041,2]
[313914896,1707819049121,-500.0,0.00029041,2]
[313914897,1707819049131,-500.0,0.00029041,2]
[313914898,1707819049142,-500.0,0.00029041,2]
[313914899,1707819049151,-500.0,0.00029041,2]
[313914900,1707819049160,-500.0,0.00029041,2]
[313914901,1707819049171,-500.0,0.00029041,2]
[313914902,1707819049181,-971.68,0.00029041,2]
[313914903,1707819049193,-500.0,0.00029041,2]
[313914904,1707819049202,-500.0,0.00029041,2]
[313914905,1707819049211,-500.0,0.00029041,2]
[313914906,1707819049220,-1988.78,0.00029041,2]
[313914907,1707819049230,-500.0,0.00029041,2]
[313914908,1707819049241,-500.0,0.00029041,2]
[313914909,1707819049251,-622.16,0.00029041,2]
[313914910,1707819049262,-893.42,0.00029041,2]
[313914911,1707819049272,-555.02475464,0.00029041,2]
[313914912,1707819049281,-500.0,0.00029041,2]
[313914913,1707819049291,-500.0,0.00029041,2]
[313914914,1707819049301,-500.0,0.00029041,2]
[313914915,1707819049311,-1236.58,0.00029041,2]
[313914916,1707819049322,-1901.76,0.00029041,2]
[313914917,1707819049333,-168.14094544,0.00029041,2]
[313914918,1707819049342,-2128.89,0.00029041,2]
[313914919,1707819049353,-1724.7,0.00029041,2]
[313914920,1707819049363,-573.56973932,0.00029041,2]
[313914921,1707819049374,-500.0,0.00029041,2]
[313914922,1707819049386,-500.0,0.00029041,2]
[313914923,1707819049396,-500.0,0.00029041,2]
[313914924,1707819049407,-541.11135037,0.00029041,2]
[313914925,1707819049417,-500.0,0.00029041,2]
[313914926,1707819049428,-500.0,0.00029041,2]
[313914927,1707819049439,-517.72,0.00029041,2]
[313914928,1707819049448,-895.08,0.00029041,2]
[313914929,1707819049458,-627.35,0.00029041,2]
[313914930,1707819049468,-500.0,0.00029041,2]
[313914931,1707819049482,-558.95468528,0.00029041,2]
[313914932,1707819049493,-500.0,0.00029041,2]
[313914933,1707819049503,-500.0,0.00029041,2]
[313914934,1707819049514,-500.0,0.00029041,2]
[313914935,1707819049524,-500.0,0.00029041,2]
[313914936,1707819049534,-2029.7,0.00029041,2]
[313914937,1707819049544,-500.0,0.00029041,2]
[313914938,1707819049553,-500.0,0.00029041,2]
[313914939,1707819049562,-525.10245611,0.00029041,2]
[313914940,1707819049572,-500.0,0.00029041,2]
[313914941,1707819049581,-500.0,0.00029041,2]
[313914942,1707819049591,-619.1,0.00029041,2]
[313914943,1707819049601,-500.0,0.00029041,2]
[313914944,1707819049610,-500.0,0.00029041,2]
[313914945,1707819049620,-500.0,0.00029041,2]
[313914946,1707819049629,-553.58306482,0.00029041,2]
[313914947,1707819049639,-500.0,0.00029041,2]
[313914948,1707819049649,-416.0,0.00029041,2]
[313914949,1707819049659,-537.80064538,0.00029041,2]
[313914950,1707819049668,-500.0,0.00029041,2]
[313914951,1707819049677,-1642.35,0.00029041,2]
[313914952,1707819049687,-585.26107314,0.00029041,2]
[313914953,1707819049696,-500.0,0.00029041,2]
[313914954,1707819049705,-550.87801506,0.00029041,2]
[313914955,1707819049714,-1883.92,0.00029041,2]
[313914956,1707819049724,-500.0,0.00029041,2]
[313914957,1707819049733,-500.0,0.00029041,2]
[313914958,1707819049743,-500.0,0.00029041,2]
[313914959,1707819049752,-543.17439956,0.00029041,2]
[313914960,1707819049762,-559.86,0.00029041,2]
[313914961,1707819049771,-500.0,0.00029041,2]
[313914962,1707819049781,-500.0,0.00029041,2]
[313914963,1707819049791,-500.0,0.00029041,2]
[313914964,1707819049800,-1286.94,0.00029041,2]
[313914965,1707819049810,-573.54,0.00029041,2]
[313914966,1707819049819,-500.0,0.00029041,2]
[313914967,1707819049829,-500.0,0.00029041,2]
[313914968,1707819049838,-500.0,0.00029041,2]
[313914969,1707819049848,-575.36037884,0.00029041,2]
[313914970,1707819049857,-1193.96,0.00029041,2]
[313914971,1707819049867,-359.62299444,0.00029041,2]
[313914972,1707819049877,-500.0,0.00029041,2]
[313914973,1707819049886,-1518.08,0.00029041,2]
[313914974,1707819049896,-500.0,0.00029041,2]
[313914975,1707819049906,-500.0,0.00029041,2]
[313914976,1707819049916,-500.0,0.00029041,2]
[313914977,1707819049925,-500.0,0.00029041,2]
[313914978,1707819049935,-500.0,0.00029041,2]
[313914979,1707819049945,-374.93518261,0.00029041,2]
[313914980,1707819049955,-2747.41,0.00029041,2]
[313914981,1707819049968,-500.0,0.00029041,2]
[313914982,1707819049977,-500.0,0.00029041,2]
[313914983,1707819049987,-500.0,0.00029041,2]
[313914984,1707819049998,-216.15251474,0.00029041,2]
[313914985,1707819050007,-500.0,0.00029041,2]
[313914986,1707819050017,-500.0,0.00029041,2]
[313914987,1707819050029,-500.0,0.00029041,2]
[313914988,1707819050039,-500.0,0.00029041,2]
[313914989,1707819050049,-594.81234352,0.00029041,2]
[313914990,1707819050060,-578.49486492,0.00029041,2]
[313914991,1707819050070,-500.0,0.00029041,2]
[313914992,1707819050081,-500.0,0.00029041,2]
[313914993,1707819050091,-788.51,0.00029041,2]
[313914994,1707819050101,-568.72,0.00029041,2]
[313914995,1707819050111,-500.0,0.00029041,2]
[313914996,1707819050122,-500.0,0.00029041,2]
[313914997,1707819050132,-500.0,0.00029041,2]
[313914998,1707819050142,-500.0,0.00029041,2]
[313914999,1707819050152,-1104.33,0.00029041,2]
[313915000,1707819050163,-500.0,0.00029041,2]
[313915001,1707819050173,-500.0,0.00029041,2]
[313915002,1707819050183,-500.0,0.00029041,2]
[313915003,1707819050194,-500.0,0.00029041,2]